[Event "GER-ch Youth-U14w 2022"]
[Site "Willingen"]
[Date "2022.06.10"]
[Round "8.2"]
[White "Braeutigam, Katerina"]
[Black "Trunz, Michelle"]
[Result "0-1"]
[ECO "C00"]
[WhiteElo "1860"]
[BlackElo "1708"]
[Annotator "NA RC COMBH"]
[PlyCount "104"]
[EventDate "2022.06.05"]
[EventType "swiss"]
[EventRounds "9"]
[EventCountry "GER"]
[SourceTitle "playchess.com"]
[Source "ChessBase"]
[SourceQuality "1"]
[TimeControl "40/4500+30:900+30"]

{[%evp 15,104,-46,-10,-14,4,7,32767,0,32767,32767,24,32767,32767,10,7,32767,25,32767,34,17,27,25,32767,32767,32767,0,32767,-4,-8,32767,-11,32767,32767,32767,-62,-91,32767,32767,-233,32767,32767,32767,32767,-402,32767,32767,32767,32767,-389,-508,32767,32767,-416,32767,32767,-436,32767,32767,-573,-524,32767,32767,32767,32767,32767,32767,32767,-446,32767,32767,32767,32767,32767,-425,32767,-538,-512,-533,-558,-526,-570,-624,-602,-564,-627,-591,-650,-606,-707,-715,-772]} 1. e4 {[%emt 0:00:00]} e6 {[%emt 0:00:00]} 2. d3 {[%emt 0:00:00]} c5 {[%emt 0:00:00]} 3. Nf3 {[%emt 0:00:00]} Nc6 {[%emt 0:00:00]} 4. Qe2 {[%emt 0:00:00]} g6 {[%emt 0:00:00]} 5. Nc3 {[%emt 0:00:00]} Bg7 {[%emt 0:00:00]} 6. g3 {[%emt 0:00:00]} Nge7 {[%emt 0:00:00]} 7. Bg2 {[%emt 0:03:54]} O-O {[%emt 0:00:00]} 8. O-O {[%emt 0:06:31]} a6 {[%emt 0:00:00]} 9. Be3 {[%emt 0:14:26]} Nd4 {[%emt 0:00:00]} 10. Qd2 {[%emt 0:02:50]} Re8 {[%emt 0:00:00]} 11. Rfe1 {[%emt 0:15:28]} d6 {[%emt 0:03:39]} 12. Rab1 {[%emt 0:08:00]} b5 {[%emt 0:02:28]} (12... e5 $142) 13. e5 {[%emt 0:03:19]} Bb7 {[%emt 0:16:57]} 14. Nxd4 {[%emt 0:06:07]} cxd4 {[%emt 0:18:58]} 15. Bxb7 {[%emt 0:02:38]} dxe3 {[%emt 0:02:26]} 16. fxe3 {[%emt 0:02:58]} Ra7 {[%emt 0:00:46]} 17. exd6 {[%emt 0:00:55]} Rxb7 {[%emt 0:00:41]} 18. dxe7 {[%emt 0:00:08]} Qxe7 {[%emt 0:01:07]} 19. d4 {[%emt 0:02:29]} f5 {[%emt 0:01:25]} 20. Ne2 {[%emt 0:03:49]} Rd7 {[%emt 0:00:55]} 21. c3 {[%emt 0:05:03]} e5 {[%emt 0:00:49]} 22. b3 {[%emt 0:02:02]} Qg5 {[%emt 0:02:49]} 23. d5 {[%emt 0:02:28]} Bh6 {[%emt 0:01:00]} 24. Kf2 {[%emt 0:02:48]} Qh5 {[%emt 0:02:57]} 25. Kg2 {[%emt 0:00:24]} ({Wrong is} 25. Kg1 $2 Qf3 26. Nc1 Rxd5 $19) (25. h3 $15) 25... Qg4 {[%emt 0:01:12]} 26. Kg1 {[%emt 0:01:39]} Qe4 {[%emt 0:01:24]} 27. Nf4 {[%emt 0:00:28]} Red8 {[%emt 0:02:18]} 28. Ne6 {[%emt 0:00:34]} Rxd5 {[%emt 0:00:29]} 29. Qg2 {[%emt 0:00:27]} Qxg2+ {[%emt 0:01:53]} 30. Kxg2 {[%emt 0:00:03]} R8d6 {[%emt 0:01:14]} 31. Nd4 {[%emt 0:00:59]} exd4 {[%emt 0:01:28]} 32. exd4 {[%emt 0:00:02]} Rd8 {[%emt 0:00:15]} 33. Rbd1 {[%emt 0:00:54]} Kf7 {[%emt 0:00:39]} 34. Rd3 {[%emt 0:00:28]} b4 {[%emt 0:00:55]} 35. cxb4 {[%emt 0:00:35]} Rxd4 {[%emt 0:00:19]} 36. Rc3 {[%emt 0:00:30]} Bd2 {[%emt 0:01:14]} 37. Rc7+ {[%emt 0:00:05]} R4d7 {[%emt 0:00:36]} 38. Rxd7+ {[%emt 0:00:14]} Rxd7 {[%emt 0:00:04]} 39. Rd1 {[%emt 0:00:11]} Ke6 {[%emt 0:00:20]} 40. a3 {[%emt 0:00:28]} Bg5 {[%emt 0:01:19]} 41. Re1+ {[%emt 0:00:00]} Kd6 {[%emt 0:00:00]} 42. Re8 {[%emt 0:00:00]} Kc6 {[%emt 0:00:00]} 43. Re6+ {[%emt 0:00:00]} Kb7 {[%emt 0:00:00]} 44. a4 {[%emt 0:02:39]} Rd2+ {[%emt 0:00:00]} 45. Kg1 {[%emt 0:03:06]} Rd3 {[%emt 0:00:00]} 46. b5 {[%emt 0:02:00]} axb5 {[%emt 0:00:00]} 47. axb5 {[%emt 0:00:37]} Rxb3 {[%emt 0:00:00]} 48. Rd6 {[%emt 0:01:25]} Kc7 {[%emt 0:00:00]} 49. Rd5 {[%emt 0:01:31]} Rb2 {[%emt 0:00:00]} 50. Kh1 {[%emt 0:02:16]} Be7 {[%emt 0:04:43]} 51. Kg1 {[%emt 0:01:34]} Bd6 {[%emt 0:00:36]} 52. Kh1 $19 {[%emt 0:01:14]} Kd7 {[%emt 0:00:22]} 0-1

[Event "GER-ch Youth-U14w 2022"]
[Site "Willingen"]
[Date "2022.06.10"]
[Round "8.3"]
[White "Lorenz, Veronika"]
[Black "Englert, Lin"]
[Result "0-1"]
[ECO "B20"]
[WhiteElo "1510"]
[BlackElo "1503"]
[Annotator "NA RC COMBH"]
[PlyCount "132"]
[EventDate "2022.06.05"]
[EventType "swiss"]
[EventRounds "9"]
[EventCountry "GER"]
[SourceTitle "playchess.com"]
[Source "ChessBase"]
[SourceQuality "1"]
[TimeControl "40/4500+30:900+30"]

1. e4 {[%emt 0:00:00]} c5 {[%emt 0:00:00]} 2. a3 {[%emt 0:00:00]} Nc6 {[%emt 0:00:00]} 3. b4 {[%emt 0:00:00]} cxb4 {[%emt 0:00:00]} 4. axb4 {[%emt 0:00:00]} Nxb4 {[%emt 0:00:00]} 5. d4 {[%emt 0:00:00]} d5 {[%emt 0:00:00]} 6. c3 {[%emt 0:00:00]} Nc6 {[%emt 0:00:00]} 7. exd5 {[%emt 0:00:00]} Qxd5 {[%emt 0:00:00]} 8. Na3 {[%emt 0:00:00]} a6 {[%emt 0:00:00]} 9. Nb5 {[%emt 0:00:00]} Qd8 {[%emt 0:05:59]} 10. Bf4 {[%emt 0:16:35]} e5 {[%emt 0:02:07]} 11. dxe5 {[%emt 0:03:57]} Qxd1+ {[%emt 0:02:20]} 12. Kxd1 {[%emt 0:00:10]} Bg4+ {[%emt 0:04:13]} 13. f3 {[%emt 0:01:12]} Rd8+ {[%emt 0:00:13]} 14. Nd6+ {[%emt 0:00:14]} Bxd6 {[%emt 0:01:13]} 15. exd6 {[%emt 0:00:07]} Be6 {[%emt 0:00:37]} 16. Rb1 {[%emt 0:05:36]} Rd7 {[%emt 0:01:14]} 17. Rb6 {[%emt 0:07:46]} Nd8 {[%emt 0:03:42]} 18. Bd3 {[%emt 0:05:25]} Nf6 {[%emt 0:01:26]} 19. c4 {[%emt 0:01:30]} Nc6 {[%emt 0:03:55]} 20. Ne2 {[%emt 0:03:08]} O-O {[%emt 0:13:00]} 21. Kd2 {[%emt 0:13:21]} Na5 {[%emt 0:06:04]} 22. Rc1 {[%emt 0:13:52]} Rc8 {[%emt 0:03:29]} 23. Nd4 {[%emt 0:07:02]} Nxc4+ {[%emt 0:04:35]} 24. Bxc4 {[%emt 0:00:03]} Rxc4 {[%emt 0:00:09]} 25. Nxe6 {[%emt 0:03:35]} Rxc1 {[%emt 0:00:15]} 26. Kxc1 {[%emt 0:00:02]} fxe6 {[%emt 0:00:09]} 27. Rb3 {[%emt 0:01:45]} Kf7 {[%emt 0:03:18]} 28. Kd2 {[%emt 0:00:52]} Ne8 {[%emt 0:03:52]} 29. Ke3 {[%emt 0:02:49]} Kf6 {[%emt 0:02:16]} 30. Ke4 {[%emt 0:00:17]} Nxd6+ {[%emt 0:02:54]} 31. Bxd6 {[%emt 0:00:01]} Rxd6 {[%emt 0:00:02]} 32. Rxb7 {[%emt 0:00:02]} Rd2 {[%emt 0:00:11]} 33. g3 {[%emt 0:01:25]} Rxh2 {[%emt 0:00:15]} 34. Ra7 {[%emt 0:00:05]} Ra2 {[%emt 0:00:09]} 35. g4 {[%emt 0:00:37]} h6 {[%emt 0:00:55]} 36. f4 {[%emt 0:00:25]} Ra4+ {[%emt 0:01:10]} 37. Kf3 {[%emt 0:00:10]} Ra5 {[%emt 0:03:05]} 38. Ke4 {[%emt 0:00:41]} g5 {[%emt 0:02:43]} 39. fxg5+ {[%emt 0:01:14]} hxg5 {[%emt 0:00:41]} 40. Ra8 {[%emt 0:00:19]} Ra4+ {[%emt 0:00:10]} 41. Kf3 {[%emt 0:15:06]} Ke5 {[%emt 0:15:29]} 42. Rg8 {[%emt 0:00:44]} Ra3+ {[%emt 0:00:08]} 43. Kf2 {[%emt 0:00:31]} Kf4 {[%emt 0:00:09]} 44. Re8 {[%emt 0:00:21]} Ra2+ {[%emt 0:00:33]} 45. Ke1 {[%emt 0:00:10]} e5 {[%emt 0:00:05]} 46. Re6 {[%emt 0:00:12]} Ra5 {[%emt 0:00:16]} 47. Kf2 {[%emt 0:00:25]} Kxg4 {[%emt 0:00:08]} 48. Rf6 {[%emt 0:00:20]} e4 {[%emt 0:00:46]} 49. Ke3 {[%emt 0:00:14]} Ra4 {[%emt 0:00:08]} 50. Rf8 {[%emt 0:00:31]} Kg3 {[%emt 0:00:26]} 51. Rg8 {[%emt 0:00:13]} g4 {[%emt 0:00:13]} 52. Rg6 {[%emt 0:00:29]} a5 {[%emt 0:00:57]} 53. Rg8 {[%emt 0:00:14]} Kh3 {[%emt 0:04:00]} 54. Kf2 {[%emt 0:00:33]} Ra2+ {[%emt 0:00:21]} 55. Ke3 {[%emt 0:00:21]} g3 {[%emt 0:00:57]} 56. Kxe4 {[%emt 0:00:30]} g2 {[%emt 0:01:06]} 57. Kf3 {[%emt 0:00:22]} Kh2 {[%emt 0:00:57]} 58. Rh8+ {[%emt 0:00:56]} Kg1 {[%emt 0:00:10]} 59. Rb8 {[%emt 0:00:54]} a4 {[%emt 0:01:57]} 60. Rc8 {[%emt 0:00:31]} Rf2+ {[%emt 0:01:31]} 61. Kg3 {[%emt 0:00:22]} Kf1 {[%emt 0:03:06]} 62. Rc1+ {[%emt 0:00:56]} Ke2 {[%emt 0:00:06]} 63. Rc2+ {[%emt 0:00:13]} Kd3 {[%emt 0:00:40]} 64. Rxf2 {[%emt 0:00:08]} g1=Q+ {[%emt 0:00:06]} 65. Kf3 {[%emt 0:00:21]} Qxf2+ {[%emt 0:00:14]} 66. Kxf2 {[%emt 0:00:05]} a3 0-1

[Event "GER-ch Youth-U14w 2022"]
[Site "Willingen"]
[Date "2022.06.10"]
[Round "8.4"]
[White "Bezsonna, Polina"]
[Black "Müller, Cosima"]
[Result "1-0"]
[ECO "B35"]
[WhiteElo "1511"]
[BlackElo "1389"]
[Annotator "NA RC COMBH"]
[PlyCount "73"]
[EventDate "2022.06.05"]
[EventType "swiss"]
[EventRounds "9"]
[EventCountry "GER"]
[SourceTitle "playchess.com"]
[Source "ChessBase"]
[SourceQuality "1"]
[TimeControl "40/4500+30:900+30"]

1. e4 {[%emt 0:00:00]} c5 {[%emt 0:00:00]} 2. Nf3 {[%emt 0:00:00]} Nc6 {[%emt 0:00:00]} 3. d4 {[%emt 0:00:00]} cxd4 {[%emt 0:00:00]} 4. Nxd4 {[%emt 0:00:00]} g6 {[%emt 0:00:00]} 5. Nc3 {[%emt 0:00:00]} Bg7 {[%emt 0:00:00]} 6. Be3 {[%emt 0:00:00]} Nf6 {[%emt 0:00:00]} 7. Bc4 {[%emt 0:00:00]} O-O {[%emt 0:00:00]} 8. Bb3 {[%emt 0:00:00]} d6 {[%emt 0:00:00]} 9. f3 {[%emt 0:00:00]} Bd7 {[%emt 0:00:00]} 10. Qd2 {[%emt 0:00:00]} Rc8 {[%emt 0:00:00]} 11. O-O-O {[%emt 0:00:00]} Ne5 {[%emt 0:00:00]} 12. h4 {[%emt 0:00:00]} h5 {[%emt 0:00:00]} 13. Bh6 {[%emt 0:00:00]} Nc4 {[%emt 0:00:00]} 14. Bxc4 {[%emt 0:00:00]} Rxc4 {[%emt 0:00:00]} 15. Bxg7 {[%emt 0:00:00]} Kxg7 {[%emt 0:00:00]} 16. g4 {[%emt 0:00:00]} Qa5 {[%emt 0:03:53]} 17. Nb3 {[%emt 0:10:22]} Qb6 {[%emt 0:05:40]} 18. e5 {[%emt 0:08:23]} dxe5 {[%emt 0:09:10]} 19. g5 {[%emt 0:08:42]} Ba4 {[%emt 0:12:53]} 20. gxf6+ {[%emt 0:00:51]} exf6 {[%emt 0:00:13]} 21. Nxa4 {[%emt 0:04:21]} Rxa4 {[%emt 0:00:12]} 22. Kb1 {[%emt 0:01:23]} Rc8 {[%emt 0:05:03]} 23. Rh2 {[%emt 0:16:45]} a5 {[%emt 0:03:40]} 24. a3 {[%emt 0:14:19]} Rac4 {[%emt 0:04:23]} 25. Qxa5 {[%emt 0:02:16]} Qc6 {[%emt 0:02:36]} 26. Rc1 {[%emt 0:06:32]} Qxf3 {[%emt 0:07:16]} 27. Nd2 {[%emt 0:02:13]} Qf4 {[%emt 0:03:07]} 28. Nxc4 {[%emt 0:00:45]} Qxh2 {[%emt 0:00:18]} 29. Nd6 {[%emt 0:01:00]} Rf8 {[%emt 0:00:58]} 30. Qb4 {[%emt 0:05:35]} b6 {[%emt 0:03:56]} 31. Qxb6 {[%emt 0:01:47]} Qxh4 {[%emt 0:00:12]} 32. c4 {[%emt 0:03:23]} e4 {[%emt 0:04:50]} 33. Qe3 {[%emt 0:01:09]} f5 {[%emt 0:01:25]} 34. c5 {[%emt 0:00:58]} Qf6 {[%emt 0:01:15]} 35. Qc3 {[%emt 0:01:02]} Ra8 {[%emt 0:05:46]} 36. Nxf5+ {[%emt 0:00:36]} gxf5 {[%emt 0:01:03]} 37. Rg1+ {[%emt 0:00:08]} 1-0

[Event "GER-ch Youth-U14w 2022"]
[Site "Willingen"]
[Date "2022.06.10"]
[Round "8.5"]
[White "Margaryan, Venera"]
[Black "Jacobasch, Ronja"]
[Result "1-0"]
[ECO "B08"]
[WhiteElo "1477"]
[BlackElo "1441"]
[Annotator "NA RC COMBH"]
[PlyCount "207"]
[EventDate "2022.06.05"]
[EventType "swiss"]
[EventRounds "9"]
[EventCountry "GER"]
[SourceTitle "playchess.com"]
[Source "ChessBase"]
[SourceQuality "1"]
[TimeControl "40/4500+30:900+30"]

1. d4 {[%emt 0:00:00]} Nf6 {[%emt 0:00:00]} 2. Nf3 {[%emt 0:00:00]} g6 {[%emt 0:00:00]} 3. Nc3 {[%emt 0:00:00]} Bg7 {[%emt 0:00:00]} 4. e4 {[%emt 0:00:00]} d6 {[%emt 0:00:00]} 5. Be2 {[%emt 0:00:00]} O-O {[%emt 0:00:00]} 6. Be3 {[%emt 0:00:00]} Nbd7 {[%emt 0:00:00]} 7. Qd2 {[%emt 0:00:00]} Ng4 {[%emt 0:00:00]} 8. Bf4 {[%emt 0:00:00]} e5 {[%emt 0:00:00]} 9. Bg5 {[%emt 0:00:00]} f6 {[%emt 0:00:00]} 10. Bc4+ {[%emt 0:03:09]} Kh8 {[%emt 0:00:00]} 11. Be3 {[%emt 0:05:47]} Nxe3 {[%emt 0:00:00]} 12. Qxe3 {[%emt 0:00:13]} Re8 {[%emt 0:06:41]} 13. h4 {[%emt 0:05:07]} Nb6 {[%emt 0:03:51]} 14. Bf7 {[%emt 0:08:59]} Re7 {[%emt 0:04:19]} 15. Bb3 {[%emt 0:11:52]} Be6 {[%emt 0:02:41]} 16. Bxe6 {[%emt 0:00:43]} Rxe6 {[%emt 0:00:31]} 17. d5 {[%emt 0:00:07]} Re7 {[%emt 0:01:51]} 18. O-O-O {[%emt 0:02:54]} Qf8 {[%emt 0:08:38]} 19. Kb1 {[%emt 0:01:13]} Rb8 {[%emt 0:08:17]} 20. h5 {[%emt 0:02:51]} Bh6 {[%emt 0:04:54]} 21. Qe2 {[%emt 0:02:30]} g5 {[%emt 0:03:43]} 22. Nh2 {[%emt 0:05:06]} Rf7 {[%emt 0:12:42]} 23. Ng4 {[%emt 0:04:13]} a6 {[%emt 0:03:39]} 24. Qd3 {[%emt 0:04:51]} Nd7 {[%emt 0:05:52]} 25. Ne2 {[%emt 0:01:42]} Nc5 {[%emt 0:01:21]} 26. Qe3 {[%emt 0:01:32]} f5 {[%emt 0:01:27]} 27. exf5 {[%emt 0:01:59]} Rxf5 {[%emt 0:01:29]} 28. Ng3 {[%emt 0:07:30]} Rf4 {[%emt 0:03:06]} 29. f3 {[%emt 0:01:24]} Nd7 {[%emt 0:02:44]} 30. Ne4 {[%emt 0:01:18]} Re8 {[%emt 0:03:54]} 31. Rh3 {[%emt 0:03:01]} Rf5 {[%emt 0:02:16]} 32. Rg3 {[%emt 0:01:16]} b6 {[%emt 0:02:49]} 33. Nxh6 {[%emt 0:00:54]} Qxh6 {[%emt 0:00:02]} 34. Nxg5 {[%emt 0:02:56]} Qxh5 {[%emt 0:01:32]} 35. Ne6 {[%emt 0:02:59]} Re7 {[%emt 0:00:38]} 36. Nxc7 {[%emt 0:01:36]} Nc5 {[%emt 0:00:53]} 37. Na8 {[%emt 0:02:39]} Rb7 {[%emt 0:00:53]} 38. b4 {[%emt 0:01:52]} Nd7 {[%emt 0:00:37]} 39. Qc3 {[%emt 0:00:48]} Qe8 {[%emt 0:00:31]} 40. Nc7 {[%emt 0:01:55]} Qc8 {[%emt 0:01:29]} 41. Qd3 {[%emt 0:00:00]} Rf4 {[%emt 0:00:00]} 42. Nxa6 {[%emt 0:00:00]} Nf6 {[%emt 0:00:45]} 43. b5 {[%emt 0:00:24]} Rd4 {[%emt 0:01:22]} 44. Qf1 {[%emt 0:03:59]} Rxd1+ {[%emt 0:06:31]} 45. Qxd1 {[%emt 0:00:38]} Qc4 {[%emt 0:00:43]} 46. Qd3 {[%emt 0:02:39]} Qxd3 {[%emt 0:01:33]} 47. cxd3 {[%emt 0:00:05]} Nxd5 {[%emt 0:00:09]} 48. Kc2 {[%emt 0:00:56]} Ne3+ {[%emt 0:03:48]} 49. Kc1 {[%emt 0:00:39]} Rg7 {[%emt 0:02:35]} 50. Rxg7 {[%emt 0:00:10]} Kxg7 {[%emt 0:00:01]} 51. g4 {[%emt 0:01:01]} Nd5 {[%emt 0:00:27]} 52. Kd2 {[%emt 0:01:08]} Kf6 {[%emt 0:00:24]} 53. a3 {[%emt 0:02:13]} Kg5 {[%emt 0:02:12]} 54. Nb4 {[%emt 0:01:18]} Nf4 {[%emt 0:00:16]} 55. Ke3 {[%emt 0:00:53]} Kf6 {[%emt 0:00:38]} 56. Ke4 {[%emt 0:00:31]} Ke6 {[%emt 0:00:29]} 57. d4 {[%emt 0:01:40]} d5+ {[%emt 0:00:49]} 58. Ke3 {[%emt 0:00:22]} Ng2+ {[%emt 0:01:05]} 59. Kf2 {[%emt 0:00:39]} Nf4 {[%emt 0:00:25]} 60. dxe5 {[%emt 0:00:40]} Kxe5 {[%emt 0:00:14]} 61. Nc6+ {[%emt 0:00:39]} Kd6 {[%emt 0:00:19]} 62. Ke3 {[%emt 0:00:26]} Ne6 {[%emt 0:00:31]} 63. Nd4 {[%emt 0:00:50]} Nc7 {[%emt 0:00:45]} 64. f4 {[%emt 0:00:56]} Ne8 {[%emt 0:00:22]} 65. Nc6 {[%emt 0:00:39]} Kc5 {[%emt 0:00:32]} 66. Nd4 {[%emt 0:00:25]} Nf6 {[%emt 0:00:43]} 67. g5 {[%emt 0:00:38]} Ng4+ {[%emt 0:01:02]} 68. Kd3 {[%emt 0:00:36]} Nf2+ {[%emt 0:00:26]} 69. Ke3 {[%emt 0:01:05]} Ng4+ {[%emt 0:00:17]} 70. Kd3 {[%emt 0:00:30]} Nf2+ {[%emt 0:00:08]} 71. Ke2 {[%emt 0:00:35]} Ne4 {[%emt 0:00:47]} 72. Ke3 {[%emt 0:01:14]} Nd6 {[%emt 0:00:54]} 73. f5 {[%emt 0:00:28]} Ne4 {[%emt 0:01:01]} 74. g6 {[%emt 0:00:25]} hxg6 {[%emt 0:00:32]} 75. fxg6 {[%emt 0:00:04]} Nf6 {[%emt 0:00:11]} 76. g7 {[%emt 0:01:00]} Ng8 {[%emt 0:00:10]} 77. a4 {[%emt 0:00:42]} Kb4 {[%emt 0:00:22]} 78. Ne6 {[%emt 0:00:56]} Kxa4 {[%emt 0:00:26]} 79. Nc7 {[%emt 0:00:18]} Kb4 {[%emt 0:00:13]} 80. Kd4 {[%emt 0:00:16]} Ka4 {[%emt 0:00:52]} 81. Kxd5 {[%emt 0:00:09]} Ne7+ {[%emt 0:00:42]} 82. Ke6 {[%emt 0:00:18]} Ng8 {[%emt 0:00:17]} 83. Kf7 {[%emt 0:00:23]} Nh6+ {[%emt 0:00:09]} 84. Kf8 {[%emt 0:00:26]} Kb4 {[%emt 0:00:20]} 85. g8=Q {[%emt 0:00:30]} Nxg8 {[%emt 0:00:03]} 86. Kxg8 {[%emt 0:01:10]} Kc5 {[%emt 0:00:14]} 87. Kf7 {[%emt 0:00:21]} Kd6 {[%emt 0:00:16]} 88. Na6 {[%emt 0:00:44]} Kd7 {[%emt 0:00:32]} 89. Kf8 {[%emt 0:00:49]} Kd8 {[%emt 0:00:21]} 90. Nb4 {[%emt 0:00:24]} Kd7 {[%emt 0:00:19]} 91. Nd5 {[%emt 0:00:14]} Kd6 {[%emt 0:00:17]} 92. Nc3 {[%emt 0:00:59]} Kd7 {[%emt 0:02:45]} 93. Na4 {[%emt 0:00:12]} Kd6 {[%emt 0:00:18]} 94. Ke8 {[%emt 0:00:21]} Kc7 {[%emt 0:01:04]} 95. Ke7 {[%emt 0:00:07]} Kb7 {[%emt 0:00:41]} 96. Kd7 {[%emt 0:00:08]} Ka7 {[%emt 0:00:20]} 97. Kc7 {[%emt 0:00:17]} Ka8 {[%emt 0:00:01]} 98. Kxb6 {[%emt 0:00:10]} Kb8 {[%emt 0:00:08]} 99. Nc3 {[%emt 0:00:22]} Ka8 {[%emt 0:00:02]} 100. Kc7 {[%emt 0:00:46]} Ka7 {[%emt 0:00:03]} 101. b6+ {[%emt 0:00:09]} Ka6 {[%emt 0:00:21]} 102. b7 {[%emt 0:00:05]} Ka5 {[%emt 0:00:04]} 103. b8=Q {[%emt 0:00:12]} Ka6 {[%emt 0:00:03]} 104. Qb6# 1-0

[Event "GER-ch Youth-U14w 2022"]
[Site "Willingen"]
[Date "2022.06.10"]
[Round "8.6"]
[White "Haug, Mara"]
[Black "Ottlik, Marie"]
[Result "1/2-1/2"]
[ECO "B99"]
[WhiteElo "1394"]
[BlackElo "1442"]
[Annotator "NA RC COMBH"]
[PlyCount "62"]
[EventDate "2022.06.05"]
[EventType "swiss"]
[EventRounds "9"]
[EventCountry "GER"]
[SourceTitle "playchess.com"]
[Source "ChessBase"]
[SourceQuality "1"]
[TimeControl "40/4500+30:900+30"]

1. e4 {[%emt 0:00:00]} c5 {[%emt 0:00:00]} 2. Nf3 {[%emt 0:00:00]} d6 {[%emt 0:00:00]} 3. d4 {[%emt 0:00:00]} cxd4 {[%emt 0:00:00]} 4. Nxd4 {[%emt 0:00:00]} Nf6 {[%emt 0:00:00]} 5. Nc3 {[%emt 0:00:00]} a6 {[%emt 0:00:00]} 6. Bg5 {[%emt 0:00:00]} e6 {[%emt 0:00:00]} 7. f4 {[%emt 0:00:00]} Nbd7 {[%emt 0:00:00]} 8. Qf3 {[%emt 0:00:00]} Be7 {[%emt 0:00:00]} 9. O-O-O {[%emt 0:00:00]} Qc7 {[%emt 0:00:00]} 10. g4 {[%emt 0:00:00]} b5 {[%emt 0:01:23]} 11. Bxf6 {[%emt 0:00:00]} Nxf6 {[%emt 0:01:12]} 12. g5 {[%emt 0:00:00]} Nd7 {[%emt 0:00:29]} 13. h4 {[%emt 0:00:35]} Bb7 {[%emt 0:05:48]} 14. Bd3 {[%emt 0:08:06]} Nc5 {[%emt 0:15:03]} 15. f5 {[%emt 0:09:17]} Nxd3+ {[%emt 0:08:59]} 16. Qxd3 {[%emt 0:02:21]} e5 {[%emt 0:07:36]} 17. Nde2 {[%emt 0:05:34]} Rc8 {[%emt 0:03:08]} 18. Rd2 {[%emt 0:02:53]} Qc4 {[%emt 0:04:43]} 19. Ng3 {[%emt 0:13:04]} b4 {[%emt 0:03:56]} 20. Qxc4 {[%emt 0:01:21]} Rxc4 {[%emt 0:00:15]} 21. Nd5 {[%emt 0:00:54]} Bxd5 {[%emt 0:02:01]} 22. Rxd5 {[%emt 0:00:35]} Kd7 {[%emt 0:03:22]} 23. Rhd1 {[%emt 0:04:32]} Rhc8 {[%emt 0:02:59]} 24. R1d2 {[%emt 0:03:44]} f6 {[%emt 0:04:29]} 25. g6 {[%emt 0:07:27]} h6 {[%emt 0:07:42]} 26. Ra5 {[%emt 0:06:30]} R8c6 {[%emt 0:02:29]} 27. Re2 {[%emt 0:03:03]} R4c5 {[%emt 0:02:38]} 28. Ra4 {[%emt 0:04:13]} a5 {[%emt 0:00:56]} 29. Nf1 {[%emt 0:03:26]} Bd8 {[%emt 0:01:54]} 30. Ne3 {[%emt 0:02:31]} Bb6 {[%emt 0:02:11]} 31. Nd5 {[%emt 0:01:34]} Rb5 {[%emt 0:01:47]} 1/2-1/2

[Event "GER-ch Youth-U14w 2022"]
[Site "Willingen"]
[Date "2022.06.10"]
[Round "8.7"]
[White "Stepanjan, Marianne"]
[Black "Fock, Madiha"]
[Result "1-0"]
[ECO "B92"]
[WhiteElo "1489"]
[BlackElo "1468"]
[Annotator "NA RC COMBH"]
[PlyCount "113"]
[EventDate "2022.06.05"]
[EventType "swiss"]
[EventRounds "9"]
[EventCountry "GER"]
[SourceTitle "playchess.com"]
[Source "ChessBase"]
[SourceQuality "1"]
[TimeControl "40/4500+30:900+30"]

1. e4 {[%emt 0:00:00]} c5 {[%emt 0:00:00]} 2. Nf3 {[%emt 0:00:00]} d6 {[%emt 0:00:00]} 3. d4 {[%emt 0:00:00]} cxd4 {[%emt 0:00:00]} 4. Nxd4 {[%emt 0:00:00]} Nf6 {[%emt 0:00:00]} 5. Nc3 {[%emt 0:00:00]} a6 {[%emt 0:00:00]} 6. Be2 {[%emt 0:00:00]} Qc7 {[%emt 0:00:00]} 7. O-O {[%emt 0:00:00]} b5 {[%emt 0:00:00]} 8. a3 {[%emt 0:00:00]} Bb7 {[%emt 0:00:00]} 9. Bd3 {[%emt 0:00:00]} e6 {[%emt 0:00:00]} 10. f4 {[%emt 0:00:00]} Nbd7 {[%emt 0:04:47]} 11. Bd2 {[%emt 0:14:46]} Qb6 {[%emt 0:07:55]} 12. Be3 {[%emt 0:01:30]} Be7 {[%emt 0:03:16]} 13. Nf5 {[%emt 0:11:22]} Qa5 {[%emt 0:07:13]} 14. Nxg7+ {[%emt 0:06:53]} Kf8 {[%emt 0:00:21]} 15. Nh5 {[%emt 0:01:00]} b4 {[%emt 0:00:39]} 16. Nxf6 {[%emt 0:00:30]} Nxf6 {[%emt 0:00:24]} 17. axb4 {[%emt 0:00:39]} Qxb4 {[%emt 0:00:09]} 18. Qc1 {[%emt 0:15:41]} Bc8 {[%emt 0:08:36]} 19. Nb5 {[%emt 0:10:35]} d5 {[%emt 0:04:30]} 20. c3 {[%emt 0:05:03]} Qb3 {[%emt 0:00:24]} 21. e5 {[%emt 0:03:28]} Ne8 {[%emt 0:03:41]} 22. Ra5 {[%emt 0:05:53]} Rb8 {[%emt 0:05:56]} 23. Bc2 {[%emt 0:03:25]} Qc4 {[%emt 0:01:06]} 24. b3 {[%emt 0:00:44]} Qc6 {[%emt 0:01:56]} 25. Na7 {[%emt 0:04:48]} Qxc3 {[%emt 0:10:11]} 26. Ra2 {[%emt 0:00:28]} Bb7 {[%emt 0:02:21]} 27. Qe1 {[%emt 0:01:05]} Qxe1 {[%emt 0:05:06]} 28. Rxe1 {[%emt 0:00:03]} h5 {[%emt 0:02:24]} 29. f5 {[%emt 0:00:50]} Rg8 {[%emt 0:01:34]} 30. Bd3 {[%emt 0:00:18]} Nc7 {[%emt 0:00:22]} 31. f6 {[%emt 0:00:35]} Bb4 {[%emt 0:01:23]} 32. Rc1 {[%emt 0:00:20]} Nb5 {[%emt 0:05:40]} 33. Nxb5 {[%emt 0:00:15]} axb5 {[%emt 0:00:04]} 34. Bxb5 {[%emt 0:00:07]} Ba8 {[%emt 0:00:36]} 35. Bc6 {[%emt 0:01:12]} Bxc6 {[%emt 0:00:10]} 36. Rxc6 {[%emt 0:00:05]} h4 {[%emt 0:00:41]} 37. h3 {[%emt 0:00:44]} Rg3 {[%emt 0:00:44]} 38. Bf2 {[%emt 0:01:08]} Rxb3 {[%emt 0:00:12]} 39. Bxh4 {[%emt 0:00:35]} Re3 {[%emt 0:01:32]} 40. Rc7 {[%emt 0:00:44]} Rxe5 {[%emt 0:04:41]} 41. Raa7 {[%emt 0:00:00]} Ke8 {[%emt 0:00:00]} 42. Bg3 {[%emt 0:00:00]} Rf5 {[%emt 0:00:00]} 43. Re7+ {[%emt 0:03:46]} Bxe7 {[%emt 0:00:00]} 44. Rxe7+ {[%emt 0:00:07]} Kd8 {[%emt 0:00:00]} 45. Bxb8 {[%emt 0:00:14]} Rxf6 {[%emt 0:00:00]} 46. Ra7 {[%emt 0:01:10]} Rf5 {[%emt 0:00:00]} 47. g4 {[%emt 0:03:38]} Rf6 {[%emt 0:00:00]} 48. Bg3 {[%emt 0:01:26]} Rh6 {[%emt 0:00:00]} 49. Kg2 {[%emt 0:01:08]} Ke8 {[%emt 0:00:00]} 50. h4 {[%emt 0:01:01]} f6 {[%emt 0:00:00]} 51. h5 {[%emt 0:03:27]} f5 {[%emt 0:00:32]} 52. Bf4 {[%emt 0:00:30]} Rf6 {[%emt 0:00:22]} 53. g5 {[%emt 0:01:06]} Rf7 {[%emt 0:00:10]} 54. Ra8+ {[%emt 0:01:13]} Ke7 {[%emt 0:00:57]} 55. Ra7+ {[%emt 0:00:42]} Kf8 {[%emt 0:01:02]} 56. Rxf7+ {[%emt 0:00:10]} Kxf7 {[%emt 0:00:05]} 57. Kf3 {[%emt 0:00:26]} 1-0